[Event "Early-Titled-Tuesday-Blitz-January-30-2024"]
[Site "Chess.com"]
[Date "2024.01.30"]
[Round "7"]
[White "AlexPapasimakopoulos"]
[Black "Pelopidass"]
[Result "1-0"]
[WhiteElo "2765"]
[BlackElo "2566"]
[TimeControl "180+1"]
[EndTime "9:19:39 PST"]
[Termination "AlexPapasimakopoulos won on time"]

1. d4 {[%clk 0:03:00.9]} 1... Nf6 {[%clk 0:02:59.6]} 2. c4 {[%clk 0:03:00.7]}
2... e6 {[%clk 0:02:59.1]} 3. Nc3 {[%clk 0:03:01]} 3... Bb4 {[%clk 0:02:59.3]}
4. Qc2 {[%clk 0:03:01.5]} 4... d5 {[%clk 0:02:53.2]} 5. cxd5 {[%clk 0:03:01.2]}
5... exd5 {[%clk 0:02:52.4]} 6. Bg5 {[%clk 0:03:01.9]} 6... c6 {[%clk
0:02:45.7]} 7. e3 {[%clk 0:03:01.7]} 7... O-O {[%clk 0:02:44.8]} 8. Bd3 {[%clk
0:03:01.4]} 8... h6 {[%clk 0:02:44.7]} 9. Bh4 {[%clk 0:03:01.9]} 9... c5 {[%clk
0:02:39.8]} 10. Nf3 {[%clk 0:02:59.1]} 10... c4 {[%clk 0:02:37.8]} 11. Bh7+
{[%clk 0:02:57.7]} 11... Kh8 {[%clk 0:02:37]} 12. Bf5 {[%clk 0:02:58.3]} 12...
Nc6 {[%clk 0:02:29.7]} 13. O-O {[%clk 0:02:55.9]} 13... Bxc3 {[%clk 0:02:26.6]}
14. bxc3 {[%clk 0:02:50.9]} 14... Qd6 {[%clk 0:02:25.1]} 15. Bxf6 {[%clk
0:02:42.5]} 15... Qxf6 {[%clk 0:02:24.1]} 16. Bxc8 {[%clk 0:02:43.1]} 16...
Raxc8 {[%clk 0:02:21.2]} 17. Rfb1 {[%clk 0:02:41.9]} 17... b6 {[%clk 0:02:17.2]}
18. Rb5 {[%clk 0:02:41.7]} 18... Qe6 {[%clk 0:02:13.4]} 19. Re1 {[%clk
0:02:39.3]} 19... f5 {[%clk 0:02:07.2]} 20. a4 {[%clk 0:02:35]} 20... Rcd8
{[%clk 0:01:54.1]} 21. h3 {[%clk 0:02:16.9]} 21... Qf6 {[%clk 0:01:38.3]} 22.
Ra1 {[%clk 0:02:05.3]} 22... Na5 {[%clk 0:01:30.4]} 23. Ne5 {[%clk 0:02:02.9]}
23... Nb3 {[%clk 0:01:30.4]} 24. Rxb3 {[%clk 0:01:45.6]} 24... cxb3 {[%clk
0:01:31.3]} 25. Qxb3 {[%clk 0:01:46.5]} 25... Kh7 {[%clk 0:01:14.3]} 26. a5
{[%clk 0:01:45.5]} 26... Rfe8 {[%clk 0:01:02.7]} 27. axb6 {[%clk 0:01:44.1]}
27... Qxb6 {[%clk 0:01:03.6]} 28. Qc2 {[%clk 0:01:41.4]} 28... Rf8 {[%clk
0:00:48.4]} 29. c4 {[%clk 0:01:40.9]} 29... dxc4 {[%clk 0:00:46.7]} 30. Qxc4
{[%clk 0:01:40.4]} 30... Rc8 {[%clk 0:00:33.2]} 31. Qa2 {[%clk 0:01:39.5]} 31...
Rc7 {[%clk 0:00:33]} 32. Rb1 {[%clk 0:01:30.1]} 32... Qd6 {[%clk 0:00:31.1]} 33.
Ra1 {[%clk 0:01:27.5]} 33... Rfc8 {[%clk 0:00:30.5]} 34. Qd2 {[%clk 0:00:52.4]}
34... Rc2 {[%clk 0:00:24.4]} 35. Qd1 {[%clk 0:00:51.9]} 35... R8c7 {[%clk
0:00:22.9]} 36. Qh5 {[%clk 0:00:36.7]} 36... Rc1+ {[%clk 0:00:17.3]} 37. Rxc1
{[%clk 0:00:37.3]} 37... Rxc1+ {[%clk 0:00:18.2]} 38. Kh2 {[%clk 0:00:37.8]}
38... g6 {[%clk 0:00:17.8]} 39. Qf3 {[%clk 0:00:36.5]} 39... Rc7 {[%clk
0:00:17.8]} 40. h4 {[%clk 0:00:36.7]} 40... Qf6 {[%clk 0:00:15.5]} 41. g3 {[%clk
0:00:36.4]} 41... a5 {[%clk 0:00:14.3]} 42. Qa8 {[%clk 0:00:35.4]} 42... Qb6
{[%clk 0:00:10.3]} 43. Qf8 {[%clk 0:00:28.2]} 43... Qa6 {[%clk 0:00:07.4]} 44.
h5 {[%clk 0:00:27]} 44... gxh5 {[%clk 0:00:04]} 45. Qxf5+ {[%clk 0:00:27.2]}
45... Kg7 {[%clk 0:00:03.8]} 46. Qxh5 {[%clk 0:00:22.3]} 46... Qf6 {[%clk
0:00:04.2]} 47. Qg4+ {[%clk 0:00:19]} 47... Kh8 {[%clk 0:00:03.4]} 48. Kg2
{[%clk 0:00:19.3]} 48... a4 {[%clk 0:00:02.6]} 49. Qe4 {[%clk 0:00:18.5]} 1-0

[Event "Early-Titled-Tuesday-Blitz-January-30-2024"]
[Site "Chess.com"]
[Date "2024.01.30"]
[Round "7"]
[White "deepfear"]
[Black "familijatop71"]
[Result "1-0"]
[WhiteElo "1959"]
[BlackElo "2236"]
[TimeControl "180+1"]
[EndTime "9:19:39 PST"]
[Termination "deepfear won on time"]

1. e4 {[%clk 0:02:55]} 1... e6 {[%clk 0:02:59.5]} 2. Nf3 {[%clk 0:02:55]} 2...
d5 {[%clk 0:02:59.6]} 3. e5 {[%clk 0:02:55.6]} 3... c5 {[%clk 0:02:59.1]} 4. b4
{[%clk 0:02:56.2]} 4... a6 {[%clk 0:02:55.3]} 5. bxc5 {[%clk 0:02:55.7]} 5...
Bxc5 {[%clk 0:02:55]} 6. d4 {[%clk 0:02:56.3]} 6... Ba7 {[%clk 0:02:49.8]} 7. c3
{[%clk 0:02:56.4]} 7... Ne7 {[%clk 0:02:48.9]} 8. Bd3 {[%clk 0:02:54.5]} 8...
Bd7 {[%clk 0:02:42.4]} 9. a4 {[%clk 0:02:40.1]} 9... b5 {[%clk 0:02:34.8]} 10.
a5 {[%clk 0:02:15.5]} 10... Nbc6 {[%clk 0:02:28.5]} 11. O-O {[%clk 0:01:52.9]}
11... Nxa5 {[%clk 0:02:21.4]} 12. Ng5 {[%clk 0:01:46]} 12... h6 {[%clk
0:02:14.4]} 13. Qh5 {[%clk 0:01:40.1]} 13... g6 {[%clk 0:01:44.9]} 14. Qh3
{[%clk 0:01:40]} 14... Nb3 {[%clk 0:01:33.6]} 15. Rxa6 {[%clk 0:01:27.2]} 15...
Nxc1 {[%clk 0:01:27.6]} 16. Rxc1 {[%clk 0:01:26.3]} 16... Nf5 {[%clk 0:01:15.3]}
17. Nf3 {[%clk 0:00:57.8]} 17... Bb6 {[%clk 0:01:08.7]} 18. Rxa8 {[%clk
0:00:56.4]} 18... Qxa8 {[%clk 0:01:08.9]} 19. Nh4 {[%clk 0:00:43.8]} 19... Bd8
{[%clk 0:01:03.1]} 20. Nxf5 {[%clk 0:00:43.2]} 20... gxf5 {[%clk 0:01:01.6]} 21.
Qe3 {[%clk 0:00:38.4]} 21... Bg5 {[%clk 0:00:58.8]} 22. f4 {[%clk 0:00:38.7]}
22... Be7 {[%clk 0:00:58.2]} 23. Qe2 {[%clk 0:00:38.9]} 23... Qa1 {[%clk
0:00:56.7]} 24. Bxb5 {[%clk 0:00:34.5]} 24... Bxb5 {[%clk 0:00:43.2]} 25. Qxb5+
{[%clk 0:00:34.4]} 25... Kf8 {[%clk 0:00:43.8]} 26. Rf1 {[%clk 0:00:19.3]} 26...
Kg7 {[%clk 0:00:37.2]} 27. Qd3 {[%clk 0:00:15.6]} 27... Rb8 {[%clk 0:00:30.4]}
28. Nd2 {[%clk 0:00:15.2]} 28... Qb2 {[%clk 0:00:25.7]} 29. Rb1 {[%clk
0:00:12.7]} 29... Qa3 {[%clk 0:00:20.4]} 30. Rxb8 {[%clk 0:00:11.9]} 30... Qc1+
{[%clk 0:00:20.7]} 31. Kf2 {[%clk 0:00:11.5]} 31... Qd1 {[%clk 0:00:17.7]} 32.
Qe2 {[%clk 0:00:10.7]} 32... Qc2 {[%clk 0:00:17.1]} 33. Rb1 {[%clk 0:00:08.9]}
33... Qxc3 {[%clk 0:00:16.3]} 34. Re1 {[%clk 0:00:07.8]} 34... Qxd4+ {[%clk
0:00:16.4]} 35. Kf1 {[%clk 0:00:07.8]} 35... Qxf4+ {[%clk 0:00:16.4]} 36. Qf2
{[%clk 0:00:06.8]} 36... Qg5 {[%clk 0:00:12.7]} 37. g3 {[%clk 0:00:06.4]} 37...
Qg4 {[%clk 0:00:10.7]} 38. Qf3 {[%clk 0:00:06]} 38... Qh3+ {[%clk 0:00:10.8]}
39. Qg2 {[%clk 0:00:06]} 39... Qg4 {[%clk 0:00:10.3]} 40. Kg1 {[%clk 0:00:05.4]}
40... Bc5+ {[%clk 0:00:10]} 41. Kh1 {[%clk 0:00:05.3]} 41... Qg5 {[%clk
0:00:08.3]} 42. Nf3 {[%clk 0:00:05.2]} 42... Qg4 {[%clk 0:00:06]} 43. Qe2 {[%clk
0:00:05.4]} 43... Qh3 {[%clk 0:00:05.3]} 44. Ng1 {[%clk 0:00:04.5]} 44... Bxg1
{[%clk 0:00:01.7]} 45. Kxg1 {[%clk 0:00:03.6]} 1-0

[Event "Early-Titled-Tuesday-Blitz-January-30-2024"]
[Site "Chess.com"]
[Date "2024.01.30"]
[Round "7"]
[White "LeoLV10"]
[Black "BestStelker"]
[Result "1-0"]
[WhiteElo "2478"]
[BlackElo "2657"]
[TimeControl "180+1"]
[EndTime "9:19:41 PST"]
[Termination "LeoLV10 won by resignation"]

1. e4 {[%clk 0:03:00.9]} 1... e6 {[%clk 0:02:58.7]} 2. d4 {[%clk 0:03:01]} 2...
d5 {[%clk 0:02:59.6]} 3. e5 {[%clk 0:03:00.8]} 3... c5 {[%clk 0:02:59.6]} 4. c3
{[%clk 0:03:01.4]} 4... Nc6 {[%clk 0:03:00.1]} 5. Nf3 {[%clk 0:03:00.9]} 5...
Qb6 {[%clk 0:02:59.6]} 6. a3 {[%clk 0:03:01.5]} 6... c4 {[%clk 0:02:59.2]} 7.
Nbd2 {[%clk 0:02:59.2]} 7... Na5 {[%clk 0:02:59.5]} 8. Be2 {[%clk 0:02:59.2]}
8... Bd7 {[%clk 0:03:00]} 9. h4 {[%clk 0:02:59.6]} 9... h6 {[%clk 0:02:58.2]}
10. h5 {[%clk 0:02:56.7]} 10... O-O-O {[%clk 0:02:54.7]} 11. Rb1 {[%clk
0:02:54.7]} 11... Kb8 {[%clk 0:02:54.1]} 12. b4 {[%clk 0:02:48.3]} 12... cxb3
{[%clk 0:02:53.3]} 13. c4 {[%clk 0:02:48.8]} 13... dxc4 {[%clk 0:02:48.5]} 14.
Nxc4 {[%clk 0:02:48.2]} 14... Nxc4 {[%clk 0:02:48.4]} 15. Bxc4 {[%clk
0:02:48.6]} 15... Qc7 {[%clk 0:02:41.3]} 16. Bxb3 {[%clk 0:02:44.8]} 16... Bb5
{[%clk 0:02:36.2]} 17. Bd2 {[%clk 0:02:39.1]} 17... Ne7 {[%clk 0:02:27.9]} 18.
Bxe6 {[%clk 0:02:33.5]} 18... Bd3 {[%clk 0:02:09.1]} 19. Rc1 {[%clk 0:02:33.5]}
19... Qb6 {[%clk 0:02:08.9]} 20. Bc4 {[%clk 0:02:30.6]} 20... Bxc4 {[%clk
0:01:43]} 21. Rxc4 {[%clk 0:02:31.5]} 21... Nc6 {[%clk 0:01:43.2]} 22. O-O
{[%clk 0:01:45.7]} 22... Be7 {[%clk 0:01:42.3]} 23. Be3 {[%clk 0:01:43]} 23...
Rd5 {[%clk 0:01:41.2]} 24. Qc2 {[%clk 0:01:40.1]} 24... Rhd8 {[%clk 0:01:23.6]}
25. Rb1 {[%clk 0:01:38.2]} 25... Rb5 {[%clk 0:01:24.2]} 26. Rc1 {[%clk
0:01:30.5]} 26... Rbd5 {[%clk 0:01:08.1]} 27. Kh2 {[%clk 0:01:13.5]} 27... Qa6
{[%clk 0:00:49.8]} 28. Rb1 {[%clk 0:01:11.2]} 28... Ka8 {[%clk 0:00:46.7]} 29.
Ra4 {[%clk 0:00:48.6]} 29... Ra5 {[%clk 0:00:39.5]} 30. Rxa5 {[%clk 0:00:48]}
30... Qxa5 {[%clk 0:00:38.1]} 31. Qb3 {[%clk 0:00:48]} 31... Qb6 {[%clk
0:00:22]} 32. Qa2 {[%clk 0:00:41.8]} 32... Qc7 {[%clk 0:00:17.2]} 33. g3 {[%clk
0:00:36.2]} 33... f6 {[%clk 0:00:15.3]} 34. Rc1 {[%clk 0:00:20.7]} 34... Qd7
{[%clk 0:00:13]} 35. e6 {[%clk 0:00:17.9]} 35... Qd5 {[%clk 0:00:12.7]} 36. Qxd5
{[%clk 0:00:14.3]} 36... Rxd5 {[%clk 0:00:13.6]} 37. g4 {[%clk 0:00:15]} 37...
Kb8 {[%clk 0:00:09.9]} 38. Rc3 {[%clk 0:00:15.3]} 38... a5 {[%clk 0:00:04.7]}
39. a4 {[%clk 0:00:13.9]} 39... Ka7 {[%clk 0:00:04.5]} 40. Rc4 {[%clk
0:00:14.4]} 40... Nd8 {[%clk 0:00:04.6]} 41. Nd2 {[%clk 0:00:12.1]} 41... Nxe6
{[%clk 0:00:04.1]} 42. Nb3 {[%clk 0:00:12.3]} 42... Bd6+ {[%clk 0:00:03.9]} 43.
Kg2 {[%clk 0:00:12.3]} 43... Kb8 {[%clk 0:00:02.7]} 44. Kf3 {[%clk 0:00:12.4]}
44... f5 {[%clk 0:00:01.3]} 45. Nd2 {[%clk 0:00:09]} 45... fxg4+ {[%clk
0:00:01.6]} 46. Kxg4 {[%clk 0:00:09.5]} 46... Nc7 {[%clk 0:00:01.9]} 47. f4
{[%clk 0:00:09.2]} 47... Be7 {[%clk 0:00:02]} 48. Ne4 {[%clk 0:00:09.2]} 48...
Ne6 {[%clk 0:00:01.8]} 49. Nc3 {[%clk 0:00:09.1]} 49... Nd8 {[%clk 0:00:02.2]}
50. Nxd5 {[%clk 0:00:09.1]} 1-0

[Event "Early-Titled-Tuesday-Blitz-January-30-2024"]
[Site "Chess.com"]
[Date "2024.01.30"]
[Round "7"]
[White "Herzog2012"]
[Black "PetrolulSah"]
[Result "1-0"]
[WhiteElo "2556"]
[BlackElo "2220"]
[TimeControl "180+1"]
[EndTime "9:19:41 PST"]
[Termination "Herzog2012 won on time"]

1. e4 {[%clk 0:03:00.9]} 1... e5 {[%clk 0:02:57.8]} 2. Nf3 {[%clk 0:02:58.6]}
2... Nf6 {[%clk 0:02:57.8]} 3. Nxe5 {[%clk 0:02:56]} 3... d6 {[%clk 0:02:57.3]}
4. Nf3 {[%clk 0:02:55.4]} 4... Nxe4 {[%clk 0:02:57.8]} 5. d4 {[%clk 0:02:54.6]}
5... d5 {[%clk 0:02:56.8]} 6. Bd3 {[%clk 0:02:55]} 6... Be7 {[%clk 0:02:56.7]}
7. O-O {[%clk 0:02:53.2]} 7... Nc6 {[%clk 0:02:55.9]} 8. c3 {[%clk 0:02:42]}
8... O-O {[%clk 0:02:55]} 9. Bf4 {[%clk 0:02:42]} 9... f5 {[%clk 0:02:47.6]} 10.
Ne5 {[%clk 0:02:37.1]} 10... Nxe5 {[%clk 0:02:38.7]} 11. Bxe5 {[%clk 0:02:38]}
11... Bd6 {[%clk 0:02:36.9]} 12. f4 {[%clk 0:02:34.8]} 12... c5 {[%clk
0:02:31.7]} 13. Nd2 {[%clk 0:02:32.5]} 13... c4 {[%clk 0:02:26.9]} 14. Bc2
{[%clk 0:02:25]} 14... b5 {[%clk 0:02:18.1]} 15. Nf3 {[%clk 0:02:17.8]} 15... b4
{[%clk 0:02:15]} 16. Bxd6 {[%clk 0:02:08.5]} 16... Qxd6 {[%clk 0:02:15.9]} 17.
Qe1 {[%clk 0:02:02]} 17... bxc3 {[%clk 0:02:12.1]} 18. bxc3 {[%clk 0:02:00.3]}
18... Qa3 {[%clk 0:02:08]} 19. Bxe4 {[%clk 0:01:58.8]} 19... fxe4 {[%clk
0:01:51]} 20. Ne5 {[%clk 0:01:55.5]} 20... Rb8 {[%clk 0:01:49.7]} 21. Qe3 {[%clk
0:01:18.1]} 21... Rb2 {[%clk 0:01:45.3]} 22. g4 {[%clk 0:00:48]} 22... Rxa2
{[%clk 0:01:19.5]} 23. Rab1 {[%clk 0:00:41.3]} 23... Rc2 {[%clk 0:01:14.9]} 24.
Rfc1 {[%clk 0:00:36.7]} 24... Qa2 {[%clk 0:01:04.3]} 25. Rxc2 {[%clk 0:00:33.3]}
25... Qxc2 {[%clk 0:00:57.7]} 26. Ra1 {[%clk 0:00:27.8]} 26... a5 {[%clk
0:00:45.5]} 27. Rxa5 {[%clk 0:00:19.5]} 27... Bxg4 {[%clk 0:00:37]} 28. Ra1
{[%clk 0:00:06.9]} 28... Bf3 {[%clk 0:00:19.2]} 29. Nxf3 {[%clk 0:00:03.5]}
29... exf3 {[%clk 0:00:19.1]} 30. Qxf3 {[%clk 0:00:04.4]} 30... Qe4 {[%clk
0:00:19.1]} 31. Qxe4 {[%clk 0:00:03.9]} 31... dxe4 {[%clk 0:00:19.3]} 32. Ra4
{[%clk 0:00:02]} 32... Rxf4 {[%clk 0:00:17.9]} 33. Rxc4 {[%clk 0:00:02.4]} 33...
Rf3 {[%clk 0:00:17]} 34. Rc5 {[%clk 0:00:02.1]} 34... Rd3 {[%clk 0:00:15.8]} 35.
Kf2 {[%clk 0:00:02.1]} 35... Rd2+ {[%clk 0:00:14]} 36. Ke3 {[%clk 0:00:03]}
36... Rxh2 {[%clk 0:00:13.6]} 37. c4 {[%clk 0:00:02.8]} 37... Ra2 {[%clk
0:00:09.6]} 38. Kxe4 {[%clk 0:00:02.9]} 38... Kf7 {[%clk 0:00:09.7]} 39. Rf5+
{[%clk 0:00:03.3]} 39... Ke6 {[%clk 0:00:09.4]} 40. Re5+ {[%clk 0:00:03.3]}
40... Kf6 {[%clk 0:00:09.2]} 41. Kd5 {[%clk 0:00:02.6]} 41... Ra5+ {[%clk
0:00:07.8]} 42. c5 {[%clk 0:00:03.1]} 42... g5 {[%clk 0:00:06.5]} 43. Kd6 {[%clk
0:00:03.1]} 43... g4 {[%clk 0:00:05.6]} 44. c6 {[%clk 0:00:03.4]} 1-0

[Event "Early-Titled-Tuesday-Blitz-January-30-2024"]
[Site "Chess.com"]
[Date "2024.01.30"]
[Round "7"]
[White "Baby_Legs"]
[Black "Savagelittlemole"]
[Result "0-1"]
[WhiteElo "2632"]
[BlackElo "2497"]
[TimeControl "180+1"]
[EndTime "9:19:43 PST"]
[Termination "Savagelittlemole won by resignation"]

1. d4 {[%clk 0:03:00.9]} 1... Nf6 {[%clk 0:02:59.6]} 2. Nf3 {[%clk 0:03:01.2]}
2... g6 {[%clk 0:02:58.9]} 3. Nbd2 {[%clk 0:02:59.2]} 3... d5 {[%clk 0:02:58.5]}
4. e3 {[%clk 0:02:57.1]} 4... Bg7 {[%clk 0:02:58.4]} 5. b3 {[%clk 0:02:57.6]}
5... O-O {[%clk 0:02:58.9]} 6. Bb2 {[%clk 0:02:58]} 6... c6 {[%clk 0:02:56.3]}
7. Bd3 {[%clk 0:02:53.2]} 7... a5 {[%clk 0:02:50.9]} 8. h3 {[%clk 0:02:30.7]}
8... Na6 {[%clk 0:02:50.8]} 9. a3 {[%clk 0:02:25.7]} 9... Nc7 {[%clk 0:02:41.9]}
10. Ne5 {[%clk 0:02:23.2]} 10... Nd7 {[%clk 0:02:34.8]} 11. Nxd7 {[%clk
0:02:08]} 11... Bxd7 {[%clk 0:02:34]} 12. c4 {[%clk 0:02:02.6]} 12... Qc8 {[%clk
0:02:29]} 13. Qf3 {[%clk 0:01:54.5]} 13... Bf5 {[%clk 0:02:22.7]} 14. Bxf5
{[%clk 0:01:54.4]} 14... Qxf5 {[%clk 0:02:23.6]} 15. Qxf5 {[%clk 0:01:54.5]}
15... gxf5 {[%clk 0:02:24.5]} 16. g4 {[%clk 0:01:54.5]} 16... f4 {[%clk
0:02:10.1]} 17. exf4 {[%clk 0:01:51.4]} 17... dxc4 {[%clk 0:02:05.4]} 18. bxc4
{[%clk 0:01:20.2]} 18... Ne6 {[%clk 0:02:04.2]} 19. Nf3 {[%clk 0:01:20.5]} 19...
Rfd8 {[%clk 0:01:56.1]} 20. O-O-O {[%clk 0:01:19.8]} 20... Nxf4 {[%clk
0:01:56.3]} 21. Rhe1 {[%clk 0:01:15.1]} 21... e6 {[%clk 0:01:52.6]} 22. Re4
{[%clk 0:01:08.9]} 22... Nxh3 {[%clk 0:01:46.8]} 23. Rf1 {[%clk 0:01:01.5]}
23... h6 {[%clk 0:01:22.4]} 24. a4 {[%clk 0:01:01.3]} 24... Rab8 {[%clk
0:01:02.7]} 25. Bc3 {[%clk 0:00:55.8]} 25... Rd7 {[%clk 0:00:52.7]} 26. Kc2
{[%clk 0:00:53.2]} 26... b5 {[%clk 0:00:50.1]} 27. Ne5 {[%clk 0:00:39.8]} 27...
Bxe5 {[%clk 0:00:47.4]} 28. dxe5 {[%clk 0:00:40.7]} 28... Ng5 {[%clk 0:00:38.6]}
29. Re3 {[%clk 0:00:40.8]} 29... b4 {[%clk 0:00:36.3]} 30. Bb2 {[%clk
0:00:22.5]} 30... Rbd8 {[%clk 0:00:33.1]} 31. f4 {[%clk 0:00:22.7]} 31... Rd2+
{[%clk 0:00:29.6]} 32. Kc1 {[%clk 0:00:21.4]} 32... Nh7 {[%clk 0:00:19.3]} 33.
Rh1 {[%clk 0:00:20.5]} 33... Rg2 {[%clk 0:00:13.6]} 34. Rxh6 {[%clk 0:00:19.6]}
34... Rdd2 {[%clk 0:00:10.8]} 35. Rb3 {[%clk 0:00:18]} 35... Rdf2 {[%clk
0:00:09.6]} 36. Kb1 {[%clk 0:00:17.7]} 36... Rxg4 {[%clk 0:00:07.9]} 37. Rbh3
{[%clk 0:00:16.5]} 37... Rg1+ {[%clk 0:00:07.9]} 38. Ka2 {[%clk 0:00:16.4]}
38... Rgg2 {[%clk 0:00:08.6]} 39. Rxh7 {[%clk 0:00:15.8]} 39... Rxb2+ {[%clk
0:00:08.5]} 40. Ka1 {[%clk 0:00:16.2]} 40... Ra2+ {[%clk 0:00:08.3]} 41. Kb1
{[%clk 0:00:16.5]} 41... Rgb2+ {[%clk 0:00:08.4]} 42. Kc1 {[%clk 0:00:16.9]}
42... b3 {[%clk 0:00:07.5]} 43. Rh8+ {[%clk 0:00:15.6]} 43... Kg7 {[%clk
0:00:07.8]} 44. R3h7+ {[%clk 0:00:09.2]} 44... Kg6 {[%clk 0:00:08.1]} 45. Rh6+
{[%clk 0:00:09.7]} 45... Kf5 {[%clk 0:00:08.3]} 46. Rf6+ {[%clk 0:00:10.1]}
46... Ke4 {[%clk 0:00:08.6]} 47. Rxf7 {[%clk 0:00:07.8]} 47... Rc2+ {[%clk
0:00:07.4]} 48. Kb1 {[%clk 0:00:08.4]} 48... Rab2+ {[%clk 0:00:07.7]} 49. Ka1
{[%clk 0:00:08.8]} 49... Ra2+ {[%clk 0:00:08.1]} 50. Kb1 {[%clk 0:00:09]} 50...
Rcb2+ {[%clk 0:00:08.7]} 51. Kc1 {[%clk 0:00:09.4]} 51... Rg2 {[%clk 0:00:09.2]}
0-1

[Event "Early-Titled-Tuesday-Blitz-January-30-2024"]
[Site "Chess.com"]
[Date "2024.01.30"]
[Round "7"]
[White "elchacal664"]
[Black "Glidzhian_Gor"]
[Result "0-1"]
[WhiteElo "2367"]
[BlackElo "2573"]
[TimeControl "180+1"]
[EndTime "9:19:44 PST"]
[Termination "Glidzhian_Gor won on time"]

1. e4 {[%clk 0:02:59.4]} 1... d6 {[%clk 0:03:00.1]} 2. g3 {[%clk 0:02:57.4]}
2... e5 {[%clk 0:03:01]} 3. Bg2 {[%clk 0:02:57.3]} 3... h5 {[%clk 0:03:01.9]} 4.
h3 {[%clk 0:02:53.2]} 4... Nc6 {[%clk 0:03:01.4]} 5. c4 {[%clk 0:02:53.2]} 5...
Be6 {[%clk 0:03:01.6]} 6. d3 {[%clk 0:02:52.8]} 6... Nd4 {[%clk 0:03:00.7]} 7.
Ne2 {[%clk 0:02:51.1]} 7... c5 {[%clk 0:03:00.1]} 8. Nxd4 {[%clk 0:02:50.8]}
8... cxd4 {[%clk 0:03:00.4]} 9. O-O {[%clk 0:02:21.5]} 9... Qd7 {[%clk
0:02:58.8]} 10. Kh2 {[%clk 0:02:20.1]} 10... O-O-O {[%clk 0:02:50.6]} 11. f4
{[%clk 0:02:13]} 11... f6 {[%clk 0:02:50.2]} 12. b4 {[%clk 0:02:07.2]} 12... Kb8
{[%clk 0:02:49.9]} 13. a4 {[%clk 0:02:04.9]} 13... Nh6 {[%clk 0:02:49.4]} 14. f5
{[%clk 0:01:58.9]} 14... Bg8 {[%clk 0:02:43.9]} 15. a5 {[%clk 0:01:55.2]} 15...
h4 {[%clk 0:02:24.8]} 16. g4 {[%clk 0:01:38]} 16... Rc8 {[%clk 0:02:03.6]} 17.
Na3 {[%clk 0:01:37.1]} 17... Nf7 {[%clk 0:02:03.2]} 18. Bd2 {[%clk 0:01:35.2]}
18... Nd8 {[%clk 0:02:03.4]} 19. b5 {[%clk 0:01:33.5]} 19... Bf7 {[%clk
0:02:01.2]} 20. Nc2 {[%clk 0:01:32.7]} 20... Be7 {[%clk 0:01:59.7]} 21. Nb4
{[%clk 0:01:32.4]} 21... Rg8 {[%clk 0:01:59]} 22. Rb1 {[%clk 0:01:29.7]} 22...
g6 {[%clk 0:01:57.4]} 23. fxg6 {[%clk 0:01:24.7]} 23... Rxg6 {[%clk 0:01:58.3]}
24. Nd5 {[%clk 0:01:24.4]} 24... Ne6 {[%clk 0:01:56.1]} 25. Rf5 {[%clk
0:01:16.8]} 25... Nc5 {[%clk 0:01:52.4]} 26. Qe2 {[%clk 0:01:15.1]} 26... Be6
{[%clk 0:01:51.3]} 27. Rbf1 {[%clk 0:01:10.2]} 27... Rcg8 {[%clk 0:01:48.1]} 28.
Nxf6 {[%clk 0:01:07.7]} 28... Bxf6 {[%clk 0:01:40.8]} 29. Rxf6 {[%clk
0:01:08.6]} 29... Rxf6 {[%clk 0:01:20.4]} 30. Rxf6 {[%clk 0:01:09.5]} 30... Qe7
{[%clk 0:01:20.8]} 31. g5 {[%clk 0:01:05.5]} 31... Nd7 {[%clk 0:01:14]} 32. Rh6
{[%clk 0:01:04]} 32... Nf8 {[%clk 0:01:12.3]} 33. Rxh4 {[%clk 0:01:02.5]} 33...
Ng6 {[%clk 0:01:10.8]} 34. Rh6 {[%clk 0:01:02.2]} 34... Nf4 {[%clk 0:01:11]} 35.
Bxf4 {[%clk 0:01:00.6]} 35... exf4 {[%clk 0:01:11.4]} 36. h4 {[%clk 0:01:01.4]}
36... Bc8 {[%clk 0:01:08.6]} 37. Qf2 {[%clk 0:00:59.6]} 37... Qe5 {[%clk
0:01:08.4]} 38. Bf3 {[%clk 0:00:58.9]} 38... Ka8 {[%clk 0:01:05.8]} 39. b6
{[%clk 0:00:58.7]} 39... Qxa5 {[%clk 0:01:04.6]} 40. Rxd6 {[%clk 0:00:48.6]}
40... Rh8 {[%clk 0:00:59.9]} 41. Bg2 {[%clk 0:00:38.7]} 41... Qxg5 {[%clk
0:00:59]} 42. Kg1 {[%clk 0:00:33.8]} 42... Rxh4 {[%clk 0:00:42.6]} 43. Qa2
{[%clk 0:00:26.4]} 43... a6 {[%clk 0:00:36.9]} 44. Qf2 {[%clk 0:00:12.3]} 44...
Rg4 {[%clk 0:00:30.7]} 45. Rxd4 {[%clk 0:00:10.5]} 45... Rg3 {[%clk 0:00:18.6]}
46. Rd5 {[%clk 0:00:09.7]} 46... Qg4 {[%clk 0:00:16.7]} 47. Rd8 {[%clk
0:00:07.6]} 47... f3 {[%clk 0:00:17.2]} 48. Rxc8+ {[%clk 0:00:01.7]} 48... Qxc8
{[%clk 0:00:18.1]} 49. Qxg3 {[%clk 0:00:01.1]} 49... Qc5+ {[%clk 0:00:19]} 50.
Qf2 {[%clk 0:00:01.2]} 50... Qg5 {[%clk 0:00:15.5]} 0-1